fUSD/lending_fUSD_20240301
["ID","MTS","AMOUNT","RATE_DAILY","PERIOD"]
[316015967,1709326247993,-500.0,0.00021917,2]
[316015968,1709326248002,-518.27176254,0.00021917,2]
[316015969,1709326248012,-500.0,0.00021917,2]
[316015970,1709326248021,-1964.17,0.00021917,2]
[316015971,1709326248030,-500.0,0.00021917,2]
[316015972,1709326248040,-500.0,0.00021917,2]
[316015973,1709326248050,-511.67030226,0.00021917,2]
[316015974,1709326248059,-500.0,0.00021917,2]
[316015975,1709326248069,-500.0,0.00021917,2]
[316015976,1709326248079,-500.0,0.00021917,2]
[316015977,1709326248088,-500.0,0.00021917,2]
[316015978,1709326248098,-500.0,0.00021917,2]
[316015979,1709326248107,-500.0,0.00021917,2]
[316015980,1709326248116,-500.0,0.00021917,2]
[316015981,1709326248126,-500.0,0.00021917,2]
[316015982,1709326248135,-500.0,0.00021917,2]
[316015983,1709326248144,-500.0,0.00021917,2]
[316015984,1709326248154,-3117.18,0.00021917,2]
[316015985,1709326248164,-500.0,0.00021917,2]
[316015986,1709326248173,-500.0,0.00021917,2]
[316015987,1709326248183,-680.36,0.00021917,2]
[316015988,1709326248193,-500.0,0.00021917,2]
[316015989,1709326248202,-576.29,0.00021917,2]
[316015990,1709326248211,-826.94,0.00021917,2]
[316015991,1709326248222,-500.0,0.00021917,2]
[316015992,1709326248231,-901.59,0.00021917,2]
[316015993,1709326248241,-500.0,0.00021917,2]
[316015994,1709326248250,-14402.31,0.00021917,2]
[316015995,1709326248260,-500.0,0.00021917,2]
[316015996,1709326248269,-3036.41,0.00021917,2]
[316015997,1709326248278,-3036.41,0.00021917,2]
[316015998,1709326248288,-500.0,0.00021917,2]
[316015999,1709326248297,-3036.41,0.00021917,2]
[316016000,1709326248308,-3036.41,0.00021917,2]
[316016001,1709326248317,-797.02,0.00021917,2]
[316016002,1709326248326,-3036.41,0.00021917,2]
[316016003,1709326248336,-3036.41,0.00021917,2]
[316016004,1709326248347,-3036.41,0.00021917,2]
[316016005,1709326248356,-500.0,0.00021917,2]
[316016006,1709326248370,-3036.41,0.00021917,2]
[316016007,1709326248379,-500.0,0.00021917,2]
[316016008,1709326248390,-3036.41,0.00021917,2]
[316016009,1709326248400,-500.0,0.00021917,2]
[316016010,1709326248409,-3036.41,0.00021917,2]
[316016011,1709326248419,-500.0,0.00021917,2]
[316016012,1709326248429,-500.0,0.00021917,2]
[316016013,1709326248440,-1399.82,0.00021917,2]
[316016014,1709326248450,-257.97468337,0.00021917,2]
[316016015,1709326248460,-514.48622637,0.00021917,2]
[316016016,1709326248469,-500.0,0.00021917,2]
[316016017,1709326248478,-596.01,0.00021917,2]
[316016018,1709326248489,-1737.31,0.00021917,2]
[316016019,1709326248498,-500.0,0.00021917,2]
[316016020,1709326248507,-1014.67,0.00021917,2]
[316016021,1709326248516,-3036.41,0.00021917,2]
[316016022,1709326248526,-500.0,0.00021917,2]
[316016023,1709326248535,-3036.41,0.00021917,2]
[316016024,1709326248544,-3036.41,0.00021917,2]
[316016025,1709326248554,-2736.06,0.00021917,2]
[316016026,1709326248563,-3036.41,0.00021917,2]
[316016027,1709326248572,-3036.41,0.00021917,2]
[316016028,1709326248582,-3036.41,0.00021917,2]
[316016029,1709326248592,-1251.49,0.00021917,2]
[316016030,1709326248603,-3036.41,0.00021917,2]
[316016031,1709326248613,-3036.41,0.00021917,2]
[316016032,1709326248623,-500.0,0.00021917,2]
[316016033,1709326248633,-3036.41,0.00021917,2]
[316016034,1709326248644,-3036.41,0.00021917,2]
[316016035,1709326248656,-3036.41,0.00021917,2]
[316016036,1709326248666,-502.42076709,0.00021917,2]
[316016037,1709326248678,-3036.41,0.00021917,2]
[316016038,1709326248691,-3036.41,0.00021917,2]
[316016039,1709326248700,-3036.55554615,0.00021917,2]
[316016040,1709326248709,-500.0,0.00021917,2]
[316016041,1709326248720,-2070.69,0.00021917,2]
[316016042,1709326248729,-976.83,0.00021917,2]
[316016043,1709326248738,-500.0,0.00021917,2]
[316016044,1709326248748,-500.0,0.00021917,2]
[316016045,1709326248757,-500.0,0.00021917,2]
[316016046,1709326248766,-687.56,0.00021917,2]
[316016047,1709326248776,-500.0,0.00021917,2]
[316016048,1709326248785,-500.0,0.00021917,2]
[316016049,1709326248794,-1382.52,0.00021917,2]
[316016050,1709326248803,-500.0,0.00021917,2]
[316016051,1709326248812,-500.0,0.00021917,2]
[316016052,1709326248822,-1480.18,0.00021917,2]
[316016053,1709326248831,-500.0,0.00021917,2]
[316016054,1709326248840,-500.0,0.00021917,2]
[316016055,1709326248850,-500.0,0.00021917,2]
[316016056,1709326248860,-889.93,0.00021917,2]
[316016057,1709326248869,-500.0,0.00021917,2]
[316016058,1709326248878,-500.0,0.00021917,2]
[316016059,1709326248887,-500.0,0.00021917,2]
[316016060,1709326248898,-500.0,0.00021917,2]
[316016061,1709326248907,-550.85,0.00021917,2]
[316016062,1709326248916,-500.0,0.00021917,2]
[316016063,1709326248925,-905.87,0.00021917,2]
[316016064,1709326248935,-500.0,0.00021917,2]
[316016065,1709326248944,-500.0,0.00021917,2]
[316016066,1709326248953,-500.0,0.00021917,2]
[316016067,1709326248966,-500.0,0.00021917,2]
[316016068,1709326248975,-1370.51,0.00021917,2]
[316016069,1709326248986,-500.0,0.00021917,2]
[316016070,1709326248996,-500.0,0.00021917,2]
[316016071,1709326249005,-500.0,0.00021917,2]
[316016072,1709326249015,-867.77,0.00021917,2]
[316016073,1709326249026,-653.52,0.00021917,2]
[316016074,1709326249036,-500.0,0.00021917,2]
[316016075,1709326249045,-2028.88,0.00021917,2]
[316016076,1709326249055,-500.0,0.00021917,2]
[316016077,1709326249066,-500.0,0.00021917,2]
[316016078,1709326249077,-500.0,0.00021917,2]
[316016079,1709326249088,-500.0,0.00021917,2]
[316016080,1709326249099,-500.0,0.00021917,2]
[316016081,1709326249110,-505.21,0.00021917,2]
[316016082,1709326249120,-500.0,0.00021917,2]
[316016083,1709326249130,-1360.96,0.00021917,2]
[316016084,1709326249140,-500.0,0.00021917,2]
[316016085,1709326249149,-500.0,0.00021917,2]
[316016086,1709326249159,-500.0,0.00021917,2]
[316016087,1709326249170,-2542.85,0.00021917,2]
[316016088,1709326249181,-329.3925334,0.00021917,2]
[316016089,1709326249191,-1865.45,0.00021917,2]
[316016090,1709326249200,-1464.06,0.00021917,2]
[316016091,1709326249209,-1121.43,0.00021917,2]
[316016092,1709326249219,-500.0,0.00021917,2]
[316016093,1709326249229,-500.0,0.00021917,2]
[316016094,1709326249243,-858.99,0.00021917,2]
[316016095,1709326249253,-617.56758821,0.00021917,2]
[316016096,1709326249264,-500.0,0.00021917,2]
[316016097,1709326249273,-500.0,0.00021917,2]
[316016098,1709326249284,-500.0,0.00021917,2]
[316016099,1709326249293,-724.31,0.00021917,2]
[316016100,1709326249304,-1009.65,0.00021917,2]
[316016101,1709326249314,-500.0,0.00021917,2]
[316016102,1709326249325,-500.0,0.00021917,2]
[316016103,1709326249335,-500.0,0.00021917,2]
[316016104,1709326249347,-507.03,0.00021917,2]
[316016105,1709326249358,-289.68129998,0.00021917,2]
[316016106,1709326249368,-2048.99,0.00021917,2]
[316016107,1709326249378,-1664.19,0.00021917,2]
[316016108,1709326249389,-500.0,0.00021917,2]
[316016109,1709326249399,-3957.07,0.00021917,2]
[316016110,1709326249409,-802.08,0.00021917,2]
[316016111,1709326249419,-500.0,0.00021917,2]
[316016112,1709326249430,-500.0,0.00021917,2]
[316016113,1709326249442,-500.0,0.00021917,2]
[316016114,1709326249451,-646.49,0.00021917,2]
[316016115,1709326249461,-500.0,0.00021917,2]
[316016116,1709326249470,-645.24,0.00021917,2]
[316016117,1709326249480,-500.0,0.00021917,2]
[316016118,1709326249491,-500.0,0.00021917,2]
[316016119,1709326249500,-500.0,0.00021917,2]
[316016120,1709326249510,-395.11936815,0.00021917,2]
[316016121,1709326249520,-386.71205495,0.00021917,2]
[316016122,1709326249529,-500.0,0.00021917,2]
[316016123,1709326249539,-500.0,0.00021917,2]
[316016124,1709326249548,-7876.48,0.00021917,2]
[316016125,1709326249558,-599.98,0.00021917,2]
[316016126,1709326249567,-500.0,0.00021917,2]
[316016127,1709326249577,-599.65,0.00021917,2]
[316016128,1709326249588,-1932.99,0.00021917,2]
[316016129,1709326249598,-1034.74,0.00021917,2]
[316016130,1709326249608,-1393.02,0.00021917,2]
[316016131,1709326249617,-1669.12,0.00021917,2]
[316016132,1709326249627,-557.12838988,0.00021917,2]
[316016133,1709326249636,-500.0,0.00021917,2]
[316016134,1709326249646,-647.18,0.00021917,2]
[316016135,1709326249655,-533.54329356,0.00021917,2]
[316016136,1709326249665,-500.0,0.00021917,2]
[316016137,1709326249675,-500.0,0.00021917,2]
[316016138,1709326249684,-500.0,0.00021917,2]
[316016139,1709326249694,-500.0,0.00021917,2]
[316016140,1709326249703,-4510.65,0.00021917,2]
[316016141,1709326249713,-500.0,0.00021917,2]
[316016142,1709326249722,-500.0,0.00021917,2]
[316016143,1709326249732,-500.0,0.00021917,2]
[316016144,1709326249741,-5659.52,0.00021917,2]
[316016145,1709326249751,-692.99,0.00021917,2]
[316016146,1709326249760,-570.89,0.00021917,2]
[316016147,1709326249769,-500.0,0.00021917,2]
[316016148,1709326249779,-799.41,0.00021917,2]
[316016149,1709326249789,-500.0,0.00021917,2]
[316016150,1709326249798,-7796.29,0.00021917,2]
[316016151,1709326249808,-500.0,0.00021917,2]
[316016152,1709326249817,-500.0,0.00021917,2]
[316016153,1709326249827,-500.0,0.00021917,2]
[316016154,1709326249838,-6476.17,0.00021917,2]
[316016155,1709326249848,-523.02,0.00021917,2]
[316016156,1709326249857,-500.0,0.00021917,2]
[316016157,1709326249867,-3013.84,0.00021917,2]
[316016158,1709326249876,-511.69019835,0.00021917,2]
[316016159,1709326249885,-500.0,0.00021917,2]
[316016160,1709326249895,-500.0,0.00021917,2]
[316016161,1709326249904,-500.0,0.00021917,2]
[316016162,1709326249915,-1065.7,0.00021917,2]
[316016163,1709326249925,-1321.12,0.00021917,2]
[316016164,1709326249935,-500.0,0.00021917,2]
[316016165,1709326249945,-500.0,0.00021917,2]
[316016166,1709326249954,-500.0,0.00021917,2]
[316016167,1709326249964,-500.0,0.00021917,2]
[316016168,1709326249974,-500.0,0.00021917,2]
[316016169,1709326249983,-500.0,0.00021917,2]
[316016170,1709326249994,-1380.97,0.00021917,2]
[316016171,1709326250004,-500.0,0.00021917,2]
[316016172,1709326250013,-459.3239721,0.00021917,2]
[316016173,1709326250023,-731.52,0.00021917,2]
[316016174,1709326250033,-637.88,0.00021917,2]
[316016175,1709326250042,-500.0,0.00021917,2]
[316016176,1709326250051,-599.33,0.00021917,2]
[316016177,1709326250061,-2089.41,0.00021917,2]
[316016178,1709326250083,-9598.11,0.00021917,2]
[316016179,1709326250093,-2359.76,0.00021917,2]
[316016180,1709326250103,-505.84571224,0.00021917,2]
[316016181,1709326250113,-6057.78,0.00021917,2]
[316016182,1709326250122,-500.0,0.00021917,2]
[316016183,1709326250132,-500.0,0.00021917,2]
[316016184,1709326250142,-500.0,0.00021917,2]
[316016185,1709326250152,-6067.78,0.00021917,2]
[316016186,1709326250162,-401.83858939,0.00021917,2]
[316016187,1709326250171,-1158.19,0.00021917,2]
[316016188,1709326250182,-995.46,0.00021917,2]
[316016189,1709326250192,-500.0,0.00021917,2]
[316016190,1709326250201,-500.0,0.00021917,2]
[316016191,1709326250212,-4691.09,0.00021917,2]
[316016192,1709326250222,-500.0,0.00021917,2]
[316016193,1709326250232,-500.0,0.00021917,2]
[316016194,1709326250426,-798.84,0.00021918,2]
[316016195,1709326250438,-251.41477224,0.00021919,2]
[316016196,1709326250448,-273.91688785,0.00021919,2]
[316016197,1709326250458,-170.76012905,0.00021919,2]
[316016198,1709326250468,-277.25830755,0.00021919,2]
[316016199,1709326250477,-500.0,0.00021919,2]
[316016200,1709326250488,-383.00937557,0.00021919,2]
[316016201,1709326250497,-500.0,0.00021919,2]
[316016202,1709326250506,-158.76,0.00021928,2]
[316016203,1709326250515,-96394.48405227,0.00021936,2]
[316016204,1709326250525,-150.0,0.0002197,2]
[316016205,1709326250534,-1296.0,0.00022,2]
[316016206,1709326250543,-1296.0,0.00022,2]
[316016207,1709326250553,-600.0,0.00022,3]
[316016208,1709326250562,-293797.56730109,0.00022,2]
[316016209,1709326250572,-11247.09,0.00022,2]
[316016210,1709326250582,-500.0,0.00022,2]
[316016211,1709326250591,-500.0,0.00022,2]
[316016212,1709326250601,-500.0,0.00022,2]
[316016213,1709326250610,-500.0,0.00022,2]
[316016214,1709326250620,-514.64,0.00022,2]
[316016215,1709326250629,-500.0,0.00022,2]
[316016216,1709326250638,-500.0,0.00022,2]
[316016217,1709326250648,-500.0,0.00022,2]
[316016218,1709326250657,-500.0,0.00022,2]
[316016219,1709326250667,-500.0,0.00022,2]
[316016220,1709326250676,-500.0,0.00022,2]
[316016221,1709326250685,-500.0,0.00022,2]
[316016222,1709326250695,-500.0,0.00022,2]
[316016223,1709326250707,-500.0,0.00022,2]
[316016224,1709326250717,-500.0,0.00022,2]
[316016225,1709326250727,-500.0,0.00022,2]
[316016226,1709326250738,-985.0,0.00022,4]
[316016227,1709326250747,-500.0,0.00022,2]
[316016228,1709326250757,-994.0,0.00022,2]
[316016229,1709326250767,-150.0,0.00022008,2]
[316016230,1709326250778,-150.0,0.00022025,2]
[316016231,1709326250788,-1720.78565485,0.00022026,2]
[316016232,1709326250798,-150.0,0.00022026,2]
[316016233,1709326250808,-5000.0,0.00022027,2]
[316016234,1709326250818,-155.0,0.00022027,2]
[316016235,1709326250828,-1466.17350424,0.00022027,2]
[316016236,1709326250839,-500.0,0.00022027,2]
[316016237,1709326250849,-500.0,0.00022027,2]
[316016238,1709326250860,-500.0,0.00022027,2]
[316016239,1709326250870,-500.0,0.00022027,2]
[316016240,1709326250880,-500.0,0.00022027,2]
[316016241,1709326250890,-500.0,0.00022027,2]
[316016242,1709326250900,-500.0,0.00022027,2]
[316016243,1709326250910,-500.0,0.00022027,2]
[316016244,1709326250920,-500.0,0.00022027,2]
[316016245,1709326250929,-500.0,0.00022027,2]
[316016246,1709326250940,-500.0,0.00022027,2]
[316016247,1709326250949,-500.0,0.00022027,2]
[316016248,1709326250959,-500.0,0.00022027,2]
[316016249,1709326250968,-500.0,0.00022027,2]
[316016250,1709326250978,-500.0,0.00022027,2]
[316016251,1709326250988,-500.0,0.00022027,2]
[316016252,1709326250998,-500.0,0.00022027,2]
[316016253,1709326251007,-500.0,0.00022027,2]
[316016254,1709326251017,-500.0,0.00022027,2]
[316016255,1709326251026,-605.74569072,0.00022027,2]
[316016256,1709326251035,-324.2643851,0.00022027,2]
[316016257,1709326251045,-500.0,0.00022027,2]
[316016258,1709326251055,-500.0,0.00022027,2]
[316016259,1709326251065,-500.0,0.00022027,2]
[316016260,1709326251075,-500.0,0.00022027,2]
[316016261,1709326251085,-500.0,0.00022027,2]
[316016262,1709326251094,-500.0,0.00022027,2]
[316016263,1709326251104,-500.0,0.00022027,2]
[316016264,1709326251114,-500.0,0.00022027,2]
[316016265,1709326251123,-500.0,0.00022027,2]
[316016266,1709326251133,-500.0,0.00022027,2]
[316016267,1709326251142,-500.0,0.00022027,2]
[316016268,1709326251152,-500.0,0.00022027,2]
[316016269,1709326251162,-500.0,0.00022027,2]
[316016270,1709326251171,-500.0,0.00022027,2]
[316016271,1709326251181,-500.0,0.00022027,2]
[316016272,1709326251191,-500.0,0.00022027,2]
[316016273,1709326251200,-500.0,0.00022027,2]
[316016274,1709326251210,-500.0,0.00022027,2]
[316016275,1709326251220,-500.0,0.00022027,2]
[316016276,1709326251230,-500.0,0.00022027,2]
[316016277,1709326251241,-500.0,0.00022027,2]
[316016278,1709326251255,-471.39147744,0.00022027,2]
[316016279,1709326251266,-500.0,0.00022027,2]
[316016280,1709326251276,-500.0,0.00022027,2]
[316016281,1709326251286,-500.0,0.00022027,2]
[316016282,1709326251296,-500.0,0.00022027,2]
[316016283,1709326251306,-500.0,0.00022027,2]
[316016284,1709326251316,-500.0,0.00022027,2]
[316016285,1709326251326,-500.0,0.00022027,2]
[316016286,1709326251336,-500.0,0.00022027,2]
[316016287,1709326251348,-500.0,0.00022027,2]
[316016288,1709326251360,-500.0,0.00022027,2]
[316016289,1709326251370,-500.0,0.00022027,2]
[316016290,1709326251380,-500.0,0.00022027,2]
[316016291,1709326251391,-500.0,0.00022027,2]
[316016292,1709326251401,-574.53703542,0.00022027,2]
[316016293,1709326251412,-500.0,0.00022027,2]
[316016294,1709326251422,-503.82884417,0.00022027,2]
[316016295,1709326251432,-500.0,0.00022027,2]
[316016296,1709326251444,-500.0,0.00022027,2]
[316016297,1709326251454,-500.0,0.00022027,2]
[316016298,1709326251464,-500.0,0.00022027,2]
[316016299,1709326251474,-500.0,0.00022027,2]
[316016300,1709326251485,-500.0,0.00022027,2]
[316016301,1709326251496,-500.0,0.00022027,2]
[316016302,1709326251507,-500.0,0.00022027,2]
[316016303,1709326251517,-500.0,0.00022027,2]
[316016304,1709326251527,-500.0,0.00022027,2]
[316016305,1709326251537,-500.0,0.00022027,2]
[316016306,1709326251547,-500.0,0.00022027,2]
[316016307,1709326251558,-500.0,0.00022027,2]
[316016308,1709326251568,-500.0,0.00022027,2]
[316016309,1709326251578,-430.53158055,0.00022027,2]
[316016310,1709326251589,-214.94260058,0.00022027,2]
[316016311,1709326251599,-500.0,0.00022027,2]
[316016312,1709326251609,-500.0,0.00022027,2]
[316016313,1709326251619,-500.0,0.00022027,2]
[316016314,1709326251629,-500.0,0.00022027,2]
[316016315,1709326251639,-500.0,0.00022027,2]
[316016316,1709326251650,-500.0,0.00022027,2]
[316016317,1709326251660,-500.0,0.00022027,2]
[316016318,1709326251670,-500.0,0.00022027,2]
[316016319,1709326251680,-500.0,0.00022027,2]
[316016320,1709326251690,-500.0,0.00022027,2]
[316016321,1709326251700,-500.0,0.00022027,2]
[316016322,1709326251710,-500.0,0.00022027,2]
[316016323,1709326251720,-500.0,0.00022027,2]
[316016324,1709326251730,-500.0,0.00022027,2]
[316016325,1709326251740,-500.0,0.00022027,2]
[316016326,1709326251750,-500.0,0.00022027,2]
[316016327,1709326251760,-500.0,0.00022027,2]
[316016328,1709326251769,-500.0,0.00022027,2]
[316016329,1709326251779,-500.0,0.00022027,2]
[316016330,1709326251789,-500.0,0.00022027,2]
[316016331,1709326251798,-649.06,0.00022027,2]
[316016332,1709326251808,-500.0,0.00022027,2]
[316016333,1709326251817,-500.0,0.00022027,2]
[316016334,1709326251827,-500.0,0.00022027,2]
[316016335,1709326251837,-500.0,0.00022027,2]
[316016336,1709326251846,-500.0,0.00022027,2]
[316016337,1709326251856,-500.0,0.00022027,2]
[316016338,1709326251865,-500.0,0.00022027,2]
[316016339,1709326251875,-500.0,0.00022027,2]
[316016340,1709326251884,-500.0,0.00022027,2]
[316016341,1709326251894,-300.21,0.00022027,2]
[316016342,1709326251904,-500.0,0.00022027,2]
[316016343,1709326251913,-500.0,0.00022027,2]
[316016344,1709326251923,-500.0,0.00022027,2]
[316016345,1709326251932,-500.0,0.00022027,2]
[316016346,1709326251941,-500.0,0.00022027,2]
[316016347,1709326251950,-500.0,0.00022027,2]
[316016348,1709326251959,-500.0,0.00022027,2]
[316016349,1709326251969,-500.0,0.00022027,2]
[316016350,1709326251981,-500.0,0.00022027,2]
[316016351,1709326251993,-500.0,0.00022027,2]
[316016352,1709326252003,-500.0,0.00022027,2]
[316016353,1709326252012,-500.0,0.00022027,2]
[316016354,1709326252021,-500.0,0.00022027,2]
[316016355,1709326252030,-500.0,0.00022027,2]
[316016356,1709326252040,-500.0,0.00022027,2]
[316016357,1709326252050,-500.0,0.00022027,2]
[316016358,1709326252059,-706.84,0.00022027,2]
[316016359,1709326252068,-500.0,0.00022027,2]
[316016360,1709326252077,-500.0,0.00022027,2]
[316016361,1709326252087,-219.15146192,0.00022027,2]
[316016362,1709326252096,-500.0,0.00022027,2]
[316016363,1709326252106,-500.0,0.00022027,2]
[316016364,1709326252115,-500.0,0.00022027,2]
[316016365,1709326252125,-548.65,0.00022027,2]
[316016366,1709326252134,-500.0,0.00022027,2]
[316016367,1709326252143,-500.0,0.00022027,2]
[316016368,1709326252152,-500.0,0.00022027,2]
[316016369,1709326252161,-500.0,0.00022027,2]
[316016370,1709326252171,-500.0,0.00022027,2]
[316016371,1709326252180,-500.0,0.00022027,2]
[316016372,1709326252189,-500.0,0.00022027,2]
[316016373,1709326252199,-500.0,0.00022027,2]
[316016374,1709326252209,-500.0,0.00022027,2]
[316016375,1709326252219,-500.0,0.00022027,2]
[316016376,1709326252229,-500.0,0.00022027,2]
[316016377,1709326252238,-500.0,0.00022027,2]
[316016378,1709326252248,-500.0,0.00022027,2]
[316016379,1709326252258,-500.0,0.00022027,2]
[316016380,1709326252267,-500.0,0.00022027,2]
[316016381,1709326252277,-500.0,0.00022027,2]
[316016382,1709326252286,-947.83,0.00022027,2]
[316016383,1709326252297,-500.0,0.00022027,2]
[316016384,1709326252306,-500.0,0.00022027,2]
[316016385,1709326252316,-500.0,0.00022027,2]
[316016386,1709326252325,-500.0,0.00022027,2]
[316016387,1709326252335,-500.0,0.00022027,2]
[316016388,1709326252346,-858.32,0.00022027,2]
[316016389,1709326252357,-500.0,0.00022027,2]
[316016390,1709326252367,-612.21690695,0.00022027,2]
[316016391,1709326252377,-500.0,0.00022027,2]
[316016392,1709326252387,-500.0,0.00022027,2]
[316016393,1709326252397,-500.0,0.00022027,2]
[316016394,1709326252408,-500.0,0.00022027,2]
[316016395,1709326252418,-500.0,0.00022027,2]
[316016396,1709326252428,-579.45,0.00022027,2]
[316016397,1709326252439,-500.0,0.00022027,2]
[316016398,1709326252449,-500.0,0.00022027,2]
[316016399,1709326252459,-500.0,0.00022027,2]
[316016400,1709326252468,-500.0,0.00022027,2]
[316016401,1709326252478,-500.0,0.00022027,2]
[316016402,1709326252488,-500.0,0.00022027,2]
[316016403,1709326252498,-500.0,0.00022027,2]
[316016404,1709326252508,-815.58,0.00022027,2]
[316016405,1709326252518,-500.0,0.00022027,2]
[316016406,1709326252527,-500.0,0.00022027,2]
[316016407,1709326252537,-500.0,0.00022027,2]
[316016408,1709326252546,-500.0,0.00022027,2]
[316016409,1709326252556,-500.0,0.00022027,2]
[316016410,1709326252565,-500.0,0.00022027,2]
[316016411,1709326252574,-500.0,0.00022027,2]
[316016412,1709326252584,-659.97,0.00022027,2]
[316016413,1709326252593,-518.74747977,0.00022027,2]
[316016414,1709326252602,-500.0,0.00022027,2]
[316016415,1709326252611,-571.62,0.00022027,2]
[316016416,1709326252620,-500.0,0.00022027,2]
[316016417,1709326252630,-519.73457087,0.00022027,2]
[316016418,1709326252969,-786.82,0.00022027,2]
[316016419,1709326252979,-500.0,0.00022027,2]
[316016420,1709326252989,-500.0,0.00022027,2]
[316016421,1709326252999,-500.0,0.00022027,2]
[316016422,1709326253009,-500.0,0.00022027,2]
[316016423,1709326253019,-315.64870586,0.00022027,2]
[316016424,1709326253028,-500.0,0.00022027,2]
[316016425,1709326253038,-500.0,0.00022027,2]
[316016426,1709326253047,-500.0,0.00022027,2]
[316016427,1709326253056,-500.0,0.00022027,2]
[316016428,1709326253065,-500.0,0.00022027,2]
[316016429,1709326253075,-626.66,0.00022027,2]
[316016430,1709326253084,-840.97,0.00022027,2]
[316016431,1709326253094,-500.0,0.00022027,2]
[316016432,1709326253104,-566.2,0.00022027,2]
[316016433,1709326253113,-500.0,0.00022027,2]
[316016434,1709326253122,-500.0,0.00022027,2]
[316016435,1709326253132,-500.0,0.00022027,2]
[316016436,1709326253142,-500.0,0.00022027,2]
[316016437,1709326253151,-896.77,0.00022027,2]
[316016438,1709326253161,-500.0,0.00022027,2]
[316016439,1709326253171,-610.84,0.00022027,2]
[316016440,1709326253182,-500.0,0.00022027,2]
[316016441,1709326253192,-500.0,0.00022027,2]
[316016442,1709326253202,-715.55,0.00022027,2]
[316016443,1709326253211,-500.0,0.00022027,2]
[316016444,1709326253226,-500.0,0.00022027,2]
[316016445,1709326253238,-1311.49,0.00022027,2]
[316016446,1709326253248,-500.0,0.00022027,2]
[316016447,1709326253257,-607.55,0.00022027,2]
[316016448,1709326253267,-500.0,0.00022027,2]
[316016449,1709326253276,-500.0,0.00022027,2]
[316016450,1709326253286,-500.0,0.00022027,2]
[316016451,1709326253296,-500.0,0.00022027,2]
[316016452,1709326253305,-500.0,0.00022027,2]
[316016453,1709326253316,-500.0,0.00022027,2]
[316016454,1709326253325,-500.0,0.00022027,2]
[316016455,1709326253335,-500.0,0.00022027,2]
[316016456,1709326253347,-500.0,0.00022027,2]
[316016457,1709326253357,-500.0,0.00022027,2]
[316016458,1709326253366,-550.28,0.00022027,2]
[316016459,1709326253375,-500.0,0.00022027,2]
[316016460,1709326253386,-500.0,0.00022027,2]
[316016461,1709326253397,-500.0,0.00022027,2]
[316016462,1709326253406,-500.0,0.00022027,2]
[316016463,1709326253416,-500.0,0.00022027,2]
[316016464,1709326253427,-500.0,0.00022027,2]
[316016465,1709326253437,-500.0,0.00022027,2]
[316016466,1709326253446,-500.0,0.00022027,2]